fUSD/lending_fUSD_20241203
["ID","MTS","AMOUNT","RATE_DAILY","PERIOD"]
[344056674,1733253045844,-358941.79160274,7.7e-05,2]
[344056675,1733253045857,-524.04498508,7.7e-05,2]
[344056676,1733253045950,-9745.68975193,7.7e-05,2]
[344056677,1733253046087,-852.74902366,7.7e-05,2]
[344056678,1733253046100,-354.37029125,7.7e-05,2]
[344056679,1733253046113,-310.48888,7.7e-05,2]
[344056684,1733253298276,320.8,6.977e-05,2]
[344056685,1733253303104,482.58669638,0.00023,120]
[344056686,1733253542180,250.0,6.914e-05,2]
[344056687,1733253922126,167.27,6.949e-05,2]
[344056781,1733254232135,-344.4657,7.2e-05,2]
[344056782,1733254232147,-150.0,7.299e-05,2]
[344056783,1733254232158,-3301.55814028,7.3e-05,2]
[344056784,1733254232213,-400.0,7.3e-05,2]
[344056785,1733254232235,-43010.79713,7.3e-05,2]
[344056786,1733254232266,-251287.64472972,7.3e-05,2]
[344056787,1733254232275,-465.4201864,7.3e-05,2]
[344056788,1733254232285,-617.62083179,7.3e-05,2]
[344056789,1733254232295,-22716.99475875,7.398e-05,2]
[344056790,1733254232304,-10278.94813118,7.398e-05,2]
[344056791,1733254232313,-1003.0,7.4e-05,2]
[344056792,1733254232323,-249.0552577,7.546e-05,2]
[344056793,1733254232333,-3008.46229269,7.63e-05,2]
[344056794,1733254232343,-435.02,7.63e-05,2]
[344056795,1733254232353,-150.0,7.63e-05,2]
[344056796,1733254232363,-150.0,7.63e-05,2]
[344056797,1733254232373,-435.02,7.63e-05,2]
[344056798,1733254232383,-870.54,7.63e-05,2]
[344056799,1733254232393,-1535.66,7.63e-05,2]
[344056800,1733254232403,-300.0,7.63e-05,2]
[344056801,1733254232412,-302.6,7.63e-05,2]
[344056802,1733254232422,-364.03,7.63e-05,2]
[344056803,1733254232431,-500.0,7.673e-05,2]
[344056804,1733254232441,-500.0,7.673e-05,2]
[344056805,1733254232451,-150.0,7.68e-05,2]
[344056806,1733254232461,-727.98,7.68e-05,2]
[344056807,1733254232471,-435.02,7.68e-05,2]
[344056808,1733254232480,-435.27,7.68e-05,2]
[344056809,1733254232490,-150.0,7.68e-05,2]
[344056810,1733254232500,-167065.00687561,7.69e-05,2]
[344056811,1733254232511,-1081.078,7.696e-05,2]
[344056812,1733254232520,-150.0,7.699e-05,2]
[344056813,1733254232529,-2000.0,7.699e-05,2]
[344056814,1733254232538,-1279.21,7.699e-05,2]
[344056815,1733254232551,-12565.08436148,7.699e-05,2]
[344056816,1733254232563,-1031430.67972172,7.7e-05,2]
[344056817,1733254232575,-325.66204951,7.7e-05,2]
[344056818,1733254232586,-4949.13892,7.7e-05,2]
[344056824,1733254232626,-2221.37201313,7.7e-05,2]
[344056826,1733254232637,-4689.14308298,7.7e-05,2]
[344056829,1733254232649,-1609.89844996,7.7e-05,2]
[344056831,1733254232660,-1876.63091592,7.7e-05,2]
[344056833,1733254232671,-419.80332225,7.7e-05,2]
[344056836,1733254232691,-2515.0,7.7e-05,2]
[344056838,1733254232703,-550.62852736,7.7e-05,2]
[344056840,1733254232715,-2160.22193657,7.7e-05,2]
[344056843,1733254238154,-1087.02868035,7.7e-05,2]
[344056844,1733254238167,-722.95388176,7.7e-05,2]
[344056845,1733254238180,-15129639.2304091,7.7e-05,2]
[344056846,1733254238192,-28747.47830619,7.7e-05,2]
[344056847,1733254238367,-348.48290493,7.7e-05,2]
[344056848,1733254238380,-6762.07038094,7.7e-05,2]
[344056849,1733254238392,-5639.78900341,7.7e-05,2]
[344056850,1733254238405,-7760.7922753,7.7e-05,2]
[344056857,1733254240036,-3982.55,7.7e-05,2]
[344056858,1733254240048,-5738.76860355,7.7e-05,2]
[344056859,1733254240059,-919.20340768,7.7e-05,2]
[344056860,1733254240073,-1429.60121816,7.7e-05,2]
[344056861,1733254240084,-12929.39593785,7.7e-05,2]
[344056862,1733254240095,-580.46260399,7.7e-05,2]
[344056863,1733254240146,-277.99,7.7e-05,2]
[344056864,1733254240241,-29549.30840056,7.7e-05,2]
[344056865,1733254240254,-5343.83255,7.7e-05,2]
[344056866,1733254240266,-301.74811313,7.7e-05,2]
[344056867,1733254240278,-431.78570185,7.7e-05,2]
[344056930,1733254243090,-9655.4,7.7e-05,2]
[344056931,1733254243103,-10041.03469135,7.7e-05,2]
[344056932,1733254243153,-9040.08637348,7.7e-05,2]
[344056933,1733254243218,-22012.30752141,7.7e-05,2]
[344056934,1733254243230,-1000.20990993,7.7e-05,2]
[344056935,1733254243284,-767.83,7.68e-05,2]
[344056936,1733254243294,-335167.40836376,7.7e-05,2]
[344056937,1733254243305,-6288.5923892,7.7e-05,2]
[344056938,1733254243316,-5135.13361715,7.7e-05,2]
[344056939,1733254243328,-2070.16776109,7.7e-05,2]
[344056940,1733254243339,-25345.74549305,7.7e-05,2]
[344056941,1733254243359,-2379.02648119,7.7e-05,2]
[344056942,1733254243370,-1707.14379109,7.7e-05,2]
[344056950,1733254245928,-152.68395887,7.699e-05,2]
[344056951,1733254245937,-12427.37201113,7.7e-05,2]
[344056952,1733254245949,-297.45520298,7.7e-05,2]
[344056953,1733254245996,-1139.88355548,7.7e-05,2]
[344056954,1733254246288,-307.56920996,7.7e-05,2]
[344056956,1733254246309,-44575.90817531,7.7e-05,2]
[344056959,1733254246362,-2500.0,7.7e-05,2]
[344056960,1733254246374,-155058.20837162,7.7e-05,2]
[344056964,1733254263108,200.0,7e-05,2]
[344056966,1733254265674,500.0,7.1e-05,2]
[344056967,1733254274103,250.0,7.091e-05,2]
[344056975,1733254564040,399.79,6.904e-05,2]
[344056990,1733255030602,250.0,6.799e-05,2]
[344056991,1733255098868,1081.81,6.781e-05,2]
[344056992,1733255123933,-162.02313196,7.19e-05,2]
[344056993,1733255123956,-1000.73673834,7.199e-05,2]
[344056994,1733255123980,-150.0,7.199e-05,2]
[344056995,1733255124003,-48687.2401297,7.2e-05,2]
[344056996,1733255125084,-50000.0,7.2e-05,2]
[344056997,1733255125788,-50000.0,7.2e-05,2]
[344056998,1733255126427,-50000.0,7.2e-05,2]
[344056999,1733255127147,-50000.0,7.2e-05,2]
[344057000,1733255127741,-49312.7598703,7.2e-05,2]
[344057001,1733255127763,-150.0,7.26e-05,2]
[344057002,1733255127786,-150.0,7.55e-05,2]
[344057003,1733255127809,-150.0,7.55e-05,2]
[344057004,1733255139080,237.2401297,7.26e-05,2]
[344057005,1733255139105,23328.67342109,7.26e-05,2]
[344057325,1733255222092,1000.0,7.1e-05,2]
[344057361,1733255248065,548.36,6.966e-05,2]
[344057542,1733255431737,341.38,6.916e-05,2]
[344057552,1733255432318,-150.0,7.599e-05,2]
[344057553,1733255432328,-2500.0,7.6e-05,2]
[344057554,1733255432552,-55670.0,7.6e-05,2]
[344057555,1733255432642,-149944.19233859,7.6e-05,2]
[344057556,1733255432654,-3715.73401905,7.6e-05,2]
[344057576,1733255432895,-2406.2,7.6e-05,2]
[344057578,1733255432907,-86263.87364236,7.6e-05,2]
[344057580,1733255432916,-5936.726,7.6e-05,2]
[344057582,1733255432925,-1574.0172,7.6e-05,2]
[344057584,1733255432934,-342.63347967,7.6e-05,2]
[344057586,1733255432943,-1001.6508842,7.6e-05,2]
[344057588,1733255432952,-1248.0,7.623e-05,2]
[344057590,1733255432962,-1245.0,7.671e-05,2]
[344057592,1733255432976,-938.0,7.671e-05,2]
[344057594,1733255432986,-160.96756112,7.673e-05,2]
[344057596,1733255432995,-500.0,7.673e-05,2]
[344057598,1733255433005,-500.0,7.673e-05,2]
[344057601,1733255433015,-220.23152018,7.677e-05,2]
[344057603,1733255433026,-292.511795,7.681e-05,2]
[344057606,1733255433036,-5768.33184778,7.682e-05,2]
[344057608,1733255433046,-292.511795,7.682e-05,2]
[344057610,1733255433055,-5768.33184778,7.684e-05,2]
[344057612,1733255433066,-292.511795,7.686e-05,2]
[344057614,1733255433075,-5768.33184778,7.686e-05,2]
[344057616,1733255433085,-220.23152018,7.687e-05,2]
[344057618,1733255433095,-220.23152018,7.687e-05,2]
[344057620,1733255433104,-5768.33184778,7.689e-05,2]
[344057622,1733255433113,-4332.9033114,7.69e-05,2]
[344057624,1733255433122,-12197.7227377,7.69e-05,2]
[344057625,1733255433132,-662.1027591,7.69e-05,2]
[344057628,1733255433142,-1878.7874094,7.69e-05,2]
[344057629,1733255433151,-714.0595667,7.69e-05,2]
[344057631,1733255433161,-5768.33184778,7.692e-05,2]
[344057633,1733255433171,-292.511795,7.694e-05,2]
[344057636,1733255433181,-220.23152018,7.694e-05,2]
[344057638,1733255433191,-3713.3126143,7.695e-05,2]
[344057640,1733255433200,-10453.4891393,7.695e-05,2]
[344057642,1733255433210,-567.2277084,7.695e-05,2]
[344057644,1733255433221,-1609.5693034,7.695e-05,2]
[344057646,1733255433230,-611.9514344,7.695e-05,2]
[344057647,1733255433239,-1567.48,7.696e-05,2]
[344057649,1733255433248,-200.0,7.696e-05,2]
[344057650,1733255433258,-292.511795,7.697e-05,2]
[344057651,1733255433269,-5768.33184778,7.698e-05,2]
[344057652,1733255433278,-292.511795,7.699e-05,2]
[344057653,1733255433288,-150.0,7.699e-05,2]
[344057654,1733255433297,-220.23152018,7.699e-05,2]
[344057655,1733255433307,-1000.0,7.699e-05,2]
[344057656,1733255433318,-2000.0,7.699e-05,2]
[344057657,1733255433328,-1225.91,7.699e-05,2]
[344057658,1733255433339,-952.36970697,7.699e-05,2]
[344057659,1733255433349,-201.22755302,7.699e-05,2]
[344057660,1733255433359,-1302.09831988,7.699e-05,2]
[344057661,1733255433370,-918.4262,7.699e-05,2]
[344057662,1733255433380,-220.23152018,7.699e-05,2]
[344057663,1733255433391,-1270932.35456288,7.7e-05,2]
[344057664,1733255433404,-4764.68256852,7.7e-05,2]
[344057665,1733255435205,250.0,7.064e-05,2]
[344057668,1733255438209,-257.48,7.7e-05,2]
[344057671,1733255438393,-510.6631488,7.7e-05,2]
[344057672,1733255438406,-357.4583809,7.7e-05,2]
[344057673,1733255438418,-15552343.4825324,7.7e-05,2]
[344057674,1733255438436,-2387.97908671,7.7e-05,2]
[344057675,1733255438448,-1776.55469539,7.7e-05,2]
[344057704,1733255440747,-1250.865,7.7e-05,2]
[344057729,1733255443293,-3517.81301874,7.7e-05,2]
[344057732,1733255443304,-97983.67498734,7.7e-05,2]
[344057733,1733255443394,-500.0,7.7e-05,2]
[344057734,1733255443510,-4408.69591251,7.7e-05,2]
[344057735,1733255443522,-252.03229808,7.7e-05,2]
[344057736,1733255443534,-52093.82233453,7.7e-05,2]
[344057737,1733255443546,-1290.757554,7.7e-05,2]
[344057739,1733255443730,-418.5,7.7e-05,2]
[344057740,1733255443783,-7111.70539795,7.7e-05,2]
[344057741,1733255443795,-4482.8467605,7.7e-05,2]
[344057742,1733255443807,-5463.56806194,7.7e-05,2]
[344057743,1733255443818,-1130.68940285,7.7e-05,2]
[344057744,1733255443892,-53232.07305984,7.7e-05,2]
[344057804,1733255446760,-47776.0,7.7e-05,2]
[344057805,1733255446771,-565.134902,7.7e-05,2]
[344057806,1733255446783,-2381.20265341,7.7e-05,2]
[344057808,1733255446816,-1035.96,7.7e-05,2]
[344057809,1733255446828,-294.77374097,7.7e-05,2]
[344057810,1733255446840,-360.59753791,7.7e-05,2]
[344057811,1733255446880,-477.1632722,7.7e-05,2]
[344057812,1733255503449,-66539.0,7.5e-05,2]
[344057813,1733255512946,-50001.0,7.5e-05,2]
[344057814,1733255517775,-50000.0,7.5e-05,2]
[344057815,1733255523695,-300.0,7.499e-05,2]
[344057816,1733255523720,-49700.0,7.5e-05,2]
[344057817,1733255525512,-50000.0,7.5e-05,2]
[344057818,1733255555404,4724.18,7.064e-05,2]
[344057819,1733255711654,508.99,6.462e-05,2]
[344057822,1733255737340,250.0,6.462e-05,2]
[344057824,1733255857569,167.27,6.442e-05,2]
[344057825,1733256048184,225.32,6.438e-05,2]
[344057826,1733256263948,1900.02,6.444e-05,2]
[344057827,1733256362470,250.0,6.505e-05,2]
[344057841,1733256604331,473.34933283,0.00023,120]
[344057844,1733256632558,-0.71134377,7.35e-05,2]
[344057845,1733256632635,-434.30865623,7.35e-05,2]
[344057846,1733256632644,-677.83134377,7.35e-05,2]
[344057847,1733256632668,-89.99865623,7.35e-05,2]
[344057848,1733256632678,-408.8,7.35e-05,2]
[344057849,1733256632687,-435.27,7.35e-05,2]
[344057850,1733256632698,-434.3,7.35e-05,2]
[344057851,1733256632708,-150.0,7.35e-05,2]
[344057852,1733256632718,-90.7635073,7.409e-05,2]
[344057853,1733256632774,-59.2364927,7.409e-05,2]
[344057854,1733256632784,-914.41272167,7.414e-05,2]
[344057855,1733256632796,-585.58727833,7.414e-05,2]
[344057856,1733256632808,-348.3,7.422e-05,2]
[344057857,1733256632817,-150.0,7.422e-05,2]
[344057859,1733256632826,-29.11272167,7.424e-05,2]
[344057861,1733256632839,-120.88727833,7.424e-05,2]
[344057863,1733256632848,-182.21823875,7.425e-05,2]
[344057865,1733256632859,-1317.78176125,7.425e-05,2]
[344057867,1733256632869,-150.0,7.425e-05,2]
[344057869,1733256632879,-150.0,7.426e-05,2]
[344057872,1733256632889,-150.0,7.429e-05,2]
[344057874,1733256632898,-150.0,7.43e-05,2]
[344057877,1733256632908,-150.0,7.431e-05,2]
[344057879,1733256632918,-150.0,7.432e-05,2]
[344057881,1733256632927,-150.0,7.432e-05,2]
[344057883,1733256632937,-150.0,7.434e-05,2]
[344057884,1733256633299,-150.0,7.434e-05,2]
[344057885,1733256633309,-150.0,7.435e-05,2]
[344057886,1733256633318,-1500.0,7.435e-05,2]
[344057887,1733256633327,-1500.0,7.437e-05,2]
[344057888,1733256633337,-150.0,7.439e-05,2]
[344057889,1733256633346,-150.0,7.44e-05,2]
[344057890,1733256633355,-150.0,7.442e-05,2]
[344057891,1733256633364,-150.0,7.444e-05,2]
[344057892,1733256633373,-150.0,7.444e-05,2]
[344057893,1733256633383,-150.0,7.445e-05,2]
[344057894,1733256633392,-150.0,7.445e-05,2]
[344057895,1733256633402,-150.0,7.446e-05,2]
[344057896,1733256633411,-150.0,7.449e-05,2]
[344057897,1733256633421,-150.0,7.449e-05,2]
[344057898,1733256633430,-150.0,7.45e-05,2]
[344057899,1733256633441,-150.0,7.45e-05,2]
[344057900,1733256633453,-150.0,7.453e-05,2]
[344057901,1733256633462,-150.0,7.455e-05,2]
[344057902,1733256633472,-150.0,7.455e-05,2]
[344057903,1733256633483,-150.0,7.456e-05,2]
[344057904,1733256633493,-150.0,7.456e-05,2]
[344057905,1733256633503,-150.0,7.457e-05,2]
[344057906,1733256633513,-1500.0,7.458e-05,2]
[344057907,1733256633524,-150.0,7.458e-05,2]
[344057908,1733256633534,-784.62031205,7.459e-05,2]
[344057909,1733256633544,-150.0,7.46e-05,2]
[344057910,1733256633554,-1500.0,7.46e-05,2]
[344057911,1733256633564,-150.0,7.461e-05,2]
[344057912,1733256633574,-150.0,7.461e-05,2]
[344057913,1733256633584,-1500.0,7.462e-05,2]
[344057914,1733256633594,-150.0,7.463e-05,2]
[344057915,1733256633604,-150.0,7.464e-05,2]
[344057916,1733256633614,-150.0,7.466e-05,2]
[344057917,1733256633623,-150.0,7.466e-05,2]
[344057918,1733256633634,-1500.0,7.467e-05,2]
[344057919,1733256633644,-150.0,7.469e-05,2]
[344057920,1733256633654,-150.0,7.469e-05,2]
[344057921,1733256633664,-150.0,7.469e-05,2]
[344057922,1733256633674,-150.0,7.47e-05,2]
[344057923,1733256633684,-150.0,7.471e-05,2]
[344057924,1733256633696,-150.0,7.472e-05,2]
[344057925,1733256633706,-1500.0,7.476e-05,2]
[344057926,1733256633716,-150.0,7.479e-05,2]
[344057927,1733256633726,-150.0,7.479e-05,2]
[344057928,1733256633736,-150.0,7.481e-05,2]
[344057929,1733256633746,-150.0,7.484e-05,2]
[344057930,1733256633756,-150.0,7.485e-05,2]
[344057931,1733256633767,-1500.0,7.487e-05,2]
[344057932,1733256633778,-150.0,7.488e-05,2]
[344057933,1733256633795,-1500.0,7.488e-05,2]
[344057934,1733256633805,-150.0,7.489e-05,2]
[344057935,1733256633815,-1500.0,7.489e-05,2]
[344057936,1733256633828,-150.0,7.489e-05,2]
[344057937,1733256633839,-150.0,7.489e-05,2]
[344057938,1733256633850,-150.0,7.492e-05,2]
[344057939,1733256633861,-158.92189597,7.496e-05,2]
[344057940,1733256633873,-150.0,7.497e-05,2]
[344057941,1733256633885,-150.0,7.498e-05,2]
[344057942,1733256633895,-150.0,7.498e-05,2]
[344057943,1733256633906,-150.0,7.499e-05,2]
[344057944,1733256633918,-31760.0,7.5e-05,2]
[344057945,1733256633929,-20802.81190806,7.5e-05,5]
[344057948,1733256638663,-17825.0,7.5e-05,5]
[344057949,1733256638675,-559.34780512,7.5e-05,5]
[344057950,1733256638685,-150.0,7.5e-05,2]
[344057952,1733256638694,-150.0,7.5e-05,2]
[344057954,1733256638710,-1028.89003941,7.504e-05,2]
[344057955,1733256638720,-150.0,7.505e-05,2]
[344057957,1733256638729,-500.0,7.507e-05,2]
[344057959,1733256638739,-1500.0,7.507e-05,2]
[344057961,1733256638748,-1500.0,7.51e-05,2]
[344057963,1733256638757,-150.0,7.512e-05,2]
[344057965,1733256638767,-150.0,7.512e-05,2]
[344057967,1733256638777,-150.0,7.512e-05,2]
[344057968,1733256638787,-150.0,7.513e-05,2]
[344057970,1733256638798,-150.0,7.515e-05,2]
[344057972,1733256638807,-167.27,7.516e-05,2]
[344057974,1733256638817,-150.0,7.516e-05,2]
[344057976,1733256638826,-150.0,7.519e-05,2]
[344057978,1733256638836,-150.0,7.519e-05,2]
[344057980,1733256638846,-150.0,7.52e-05,2]
[344057981,1733256638855,-150.0,7.521e-05,2]
[344057983,1733256638866,-150.0,7.522e-05,2]
[344057985,1733256638877,-150.0,7.522e-05,2]
[344057987,1733256638887,-150.0,7.522e-05,2]
[344057989,1733256638897,-150.0,7.522e-05,2]
[344057991,1733256638907,-150.0,7.523e-05,2]
[344057993,1733256638917,-150.0,7.523e-05,2]
[344057995,1733256638927,-1500.0,7.523e-05,2]
[344057996,1733256638936,-150.0,7.524e-05,2]
[344057998,1733256638946,-150.0,7.526e-05,2]
[344058000,1733256638957,-150.0,7.532e-05,2]
[344058002,1733256638967,-224.93143369,7.533e-05,2]
[344058004,1733256638977,-150.0,7.533e-05,2]
[344058006,1733256638987,-159.97,7.534e-05,2]
[344058007,1733256638996,-150.0,7.535e-05,2]
[344058009,1733256639005,-150.0,7.536e-05,2]
[344058011,1733256639015,-150.0,7.536e-05,2]
[344058013,1733256639024,-150.0,7.539e-05,2]
[344058015,1733256639034,-150.0,7.54e-05,2]
[344058017,1733256639043,-150.0,7.54e-05,2]
[344058019,1733256639052,-150.0,7.541e-05,2]
[344058021,1733256639062,-150.0,7.541e-05,2]
[344058023,1733256639071,-150.0,7.541e-05,2]
[344058024,1733256639081,-150.0,7.542e-05,2]
[344058026,1733256639090,-150.0,7.543e-05,2]
[344058028,1733256639099,-1500.0,7.543e-05,2]
[344058030,1733256639109,-150.0,7.546e-05,2]
[344058032,1733256639119,-150.0,7.546e-05,2]
[344058033,1733256639128,-59725.0,7.547e-05,2]
[344058035,1733256639137,-150.0,7.55e-05,2]
[344058037,1733256639147,-1500.0,7.55e-05,2]
[344058039,1733256639156,-150.0,7.551e-05,2]
[344058041,1733256639165,-150.0,7.551e-05,2]
[344058043,1733256639173,-150.0,7.554e-05,2]
[344058045,1733256639182,-1500.0,7.554e-05,2]
[344058047,1733256639191,-150.0,7.559e-05,2]
[344058048,1733256639202,-1500.0,7.561e-05,2]
[344058050,1733256639212,-150.0,7.563e-05,2]
[344058052,1733256639221,-150.0,7.567e-05,2]
[344058054,1733256639230,-1500.0,7.568e-05,2]
[344058056,1733256639240,-150.0,7.568e-05,2]
[344058058,1733256639250,-150.0,7.572e-05,2]
[344058060,1733256639259,-150.0,7.573e-05,2]
[344058062,1733256639269,-723.608,7.574e-05,2]
[344058064,1733256639278,-1893.0,7.574e-05,2]
[344058066,1733256639288,-563.0,7.574e-05,2]
[344058068,1733256639298,-1252.0,7.574e-05,2]
[344058069,1733256639306,-816.0,7.574e-05,2]
[344058071,1733256639316,-3760.0,7.574e-05,2]
[344058073,1733256639325,-975.0,7.574e-05,2]
[344058075,1733256639334,-3528.0,7.574e-05,2]
[344058077,1733256639344,-535.0,7.574e-05,2]
[344058079,1733256639353,-1500.0,7.574e-05,2]
[344058081,1733256639363,-150.0,7.575e-05,2]
[344058083,1733256639371,-150.0,7.575e-05,2]
[344058084,1733256639382,-150.0,7.576e-05,2]
[344058086,1733256639391,-150.0,7.577e-05,2]
[344058088,1733256639400,-150.0,7.58e-05,2]
[344058090,1733256639410,-178.803,7.581e-05,2]
[344058092,1733256639419,-5962.0,7.581e-05,2]
[344058094,1733256639428,-1167.391,7.581e-05,2]
[344058096,1733256639437,-13709.0,7.581e-05,2]
[344058098,1733256639446,-150.0,7.582e-05,2]
[344058099,1733256639456,-781.53682571,7.583e-05,2]
[344058101,1733256639465,-150.0,7.584e-05,2]
[344058102,1733256639474,-150.0,7.586e-05,2]
[344058103,1733256639483,-150.0,7.59e-05,2]
[344058104,1733256639493,-150.0,7.59e-05,2]
[344058105,1733256639502,-150.0,7.592e-05,2]
[344058106,1733256639511,-150.0,7.594e-05,2]
[344058107,1733256639520,-1500.0,7.594e-05,2]
[344058108,1733256639529,-150.0,7.596e-05,2]
[344058109,1733256639537,-1500.0,7.598e-05,2]
[344058110,1733256639546,-2242.04728375,7.6e-05,2]
[344058111,1733256639555,-1000.0,7.6e-05,2]
[344058112,1733256639564,-2500.0,7.6e-05,2]
[344058113,1733256639574,-150.0,7.6e-05,2]
[344058115,1733256639583,-12180.15,7.6e-05,2]
[344058117,1733256639592,-1500.0,7.601e-05,2]
[344058119,1733256639602,-150.0,7.604e-05,2]
[344058121,1733256639611,-150.0,7.605e-05,2]
[344058123,1733256639620,-150.0,7.605e-05,2]
[344058125,1733256639629,-150.0,7.607e-05,2]
[344058127,1733256639639,-150.0,7.607e-05,2]
[344058129,1733256639648,-150.0,7.608e-05,2]
[344058131,1733256639657,-150.0,7.609e-05,2]
[344058133,1733256639666,-150.0,7.61e-05,2]
[344058134,1733256639675,-150.0,7.611e-05,2]
[344058136,1733256639685,-1500.0,7.611e-05,2]
[344058138,1733256639694,-1500.0,7.613e-05,2]
[344058140,1733256639705,-150.0,7.62e-05,2]
[344058142,1733256639720,-150.0,7.62e-05,2]
[344058145,1733256639730,-1500.0,7.62e-05,2]
[344058147,1733256639739,-150.0,7.624e-05,2]
[344058148,1733256639748,-150.0,7.626e-05,2]
[344058151,1733256639758,-150.0,7.628e-05,2]
[344058153,1733256639767,-150.0,7.631e-05,2]
[344058155,1733256639777,-1500.0,7.634e-05,2]
[344058157,1733256639789,-150.0,7.637e-05,2]
[344058159,1733256639798,-150.0,7.638e-05,2]
[344058161,1733256639808,-1500.0,7.638e-05,2]
[344058163,1733256639817,-1500.0,7.641e-05,2]
[344058165,1733256639829,-150.0,7.642e-05,2]
[344058167,1733256639839,-150.0,7.643e-05,2]
[344058169,1733256639848,-150.0,7.643e-05,2]
[344058171,1733256639857,-150.0,7.645e-05,2]
[344058173,1733256639869,-150.0,7.646e-05,2]
[344058175,1733256639879,-150.0,7.647e-05,2]
[344058176,1733256639889,-150.0,7.648e-05,2]
[344058179,1733256639899,-150.0,7.653e-05,2]
[344058181,1733256639909,-150.0,7.658e-05,2]
[344058183,1733256639918,-150.0,7.659e-05,2]
[344058184,1733256639928,-1500.0,7.664e-05,2]
[344058186,1733256639937,-150.0,7.667e-05,2]
[344058188,1733256639947,-150.0,7.668e-05,2]
[344058190,1733256639960,-150.0,7.669e-05,2]
[344058192,1733256639970,-150.0,7.671e-05,2]
[344058194,1733256639980,-21957.0,7.671e-05,2]
[344058196,1733256639991,-454.0,7.671e-05,2]
[344058198,1733256640000,-797.0,7.671e-05,2]
[344058200,1733256640010,-150.0,7.672e-05,2]
[344058202,1733256640020,-150.0,7.672e-05,2]
[344058205,1733256640030,-150.0,7.672e-05,2]
[344058207,1733256640039,-502.15346815,7.673e-05,2]
[344058209,1733256640049,-500.0,7.673e-05,2]
[344058211,1733256640059,-150.0,7.673e-05,2]
[344058212,1733256640069,-150.0,7.673e-05,2]
[344058214,1733256640078,-150.0,7.675e-05,2]
[344058216,1733256640088,-150.0,7.677e-05,2]
[344058218,1733256640098,-9908.01196913,7.679e-05,2]
[344058220,1733256640107,-150.0,7.68e-05,2]
[344058222,1733256640117,-9908.01196913,7.68e-05,2]
[344058224,1733256640127,-1500.0,7.681e-05,2]
[344058226,1733256640136,-1500.0,7.682e-05,2]
[344058228,1733256640146,-150.0,7.684e-05,2]
[344058229,1733256640156,-9908.01196913,7.684e-05,2]
[344058230,1733256640166,-150.0,7.685e-05,2]
[344058231,1733256640175,-820.5950614,7.689e-05,2]
[344058232,1733256640184,-532.69687966,7.689e-05,2]
[344058233,1733256640193,-237.7874023,7.689e-05,2]
[344058234,1733256640204,-6208.2641474,7.689e-05,2]
[344058235,1733256640213,-150.0,7.689e-05,2]
[344058236,1733256640222,-9908.01196913,7.69e-05,2]
[344058237,1733256640232,-9908.01196913,7.693e-05,2]
[344058238,1733256640241,-706.5836551,7.695e-05,2]
[344058239,1733256640251,-237.7874023,7.695e-05,2]
[344058240,1733256640260,-5349.7331933,7.695e-05,2]
[344058241,1733256640270,-150.0,7.695e-05,2]
[344058242,1733256640279,-1524.722,7.696e-05,2]
[344058243,1733256640289,-9908.01196913,7.697e-05,2]
[344058244,1733256640297,-150.0,7.699e-05,2]
[344058245,1733256640306,-952.36970697,7.699e-05,2]
[344058246,1733256640316,-314.94531427,7.699e-05,2]
[344058247,1733256640325,-2000.0,7.699e-05,2]
[344058248,1733256640335,-3028.00090129,7.699e-05,2]
[344058249,1733256640344,-1297.84,7.699e-05,2]
[344058250,1733256640353,-2304392.17895935,7.7e-05,2]
[344058251,1733256640362,-5605.90070062,7.7e-05,2]
[344058252,1733256640371,-25000.0,7.7e-05,2]
[344058253,1733256640380,-12947243.90653783,7.7e-05,2]
[344058254,1733256640394,-120705.38051338,7.7e-05,2]
[344058255,1733256640561,-360371.99025764,7.7e-05,2]
[344058256,1733256640572,-570.500004,7.7e-05,2]
[344058257,1733256642550,-262.69224646,7.7e-05,2]
[344058262,1733256643920,-1097.0,7.581e-05,2]
[344058263,1733256643930,-3692.90727554,7.7e-05,2]
[344058264,1733256643951,-442.74140777,7.7e-05,2]
[344058265,1733256643963,-6816.73050942,7.7e-05,2]
[344058266,1733256644006,-195273.34467604,7.7e-05,2]
[344058267,1733256644018,-120010.0,7.7e-05,2]
[344058339,1733256713072,319.83,7.126e-05,2]
[344058344,1733257049799,250.0,7.02e-05,2]
[344058345,1733257292075,438.68,7.008e-05,2]
[344058346,1733257317044,300.0,0.00023,120]
[344058347,1733257317773,300.0,0.00023,120]